[Event "Germany Countries-chT Youth 2022"]
[Site "Wiesbaden"]
[Date "2022.10.01"]
[Round "1"]
[White "Färber, Anna"]
[Black "Rafikova, Ailin"]
[Result "0-1"]
[ECO "B22"]
[WhiteElo "1165"]
[BlackElo "1287"]
[Annotator "NA COMBH"]
[PlyCount "100"]
[EventDate "2022.09.28"]
[EventType "team-tourn"]
[EventRounds "7"]
[EventCountry "GER"]
[SourceTitle "playchess.com"]
[Source "ChessBase"]
[SourceQuality "1"]
[TimeControl "40/5400+30:1800+30"]

1. e4 {[%emt 0:00:03]} c5 {[%emt 0:00:24]} 2. c3 {[%emt 0:00:13]} d6 {[%emt 0:00:22]} 3. d4 {[%emt 0:00:16]} cxd4 {[%emt 0:01:07]} 4. cxd4 {[%emt 0:00:28]} Nf6 {[%emt 0:00:59]} 5. Nc3 {[%emt 0:00:33]} Nc6 {[%emt 0:01:20]} 6. Be3 {[%emt 0:01:28]} e6 {[%emt 0:01:26]} 7. Be2 {[%emt 0:03:39]} d5 {[%emt 0:03:44]} 8. e5 {[%emt 0:06:05]} Nd7 {[%emt 0:02:24]} 9. Nf3 {[%emt 0:02:51]} Bb4 {[%emt 0:02:32]} 10. O-O {[%emt 0:01:59]} O-O {[%emt 0:01:13]} 11. Bd3 {[%emt 0:01:03]} f6 {[%emt 0:02:25]} 12. exf6 {[%emt 0:02:46]} Nxf6 {[%emt 0:07:50]} 13. Bg5 {[%emt 0:01:35]} h6 {[%emt 0:01:43]} 14. Bh4 {[%emt 0:02:28]} Bd7 {[%emt 0:04:07]} 15. Bc2 {[%emt 0:01:21]} g5 {[%emt 0:04:47]} 16. Qd3 {[%emt 0:03:16]} Be8 {[%emt 0:05:55]} 17. Bg3 {[%emt 0:01:21]} Qe7 {[%emt 0:02:19]} 18. Rad1 {[%emt 0:02:37]} Qg7 {[%emt 0:03:23]} 19. a3 {[%emt 0:02:33]} Be7 {[%emt 0:02:42]} 20. Rfe1 {[%emt 0:01:31]} Kf7 {[%emt 0:03:00]} 21. Qe3 {[%emt 0:01:16]} Bd7 {[%emt 0:03:49]} 22. Ne5+ {[%emt 0:02:52]} Nxe5 {[%emt 0:01:47]} 23. Qxe5 {[%emt 0:00:53]} Rac8 {[%emt 0:01:52]} 24. Bb3 {[%emt 0:01:16]} Rce8 {[%emt 0:02:12]} 25. Rd3 {[%emt 0:03:41]} h5 {[%emt 0:03:13]} 26. Qc7 {[%emt 0:06:24]} h4 {[%emt 0:06:19]} 27. Be5 {[%emt 0:01:00]} Bc6 {[%emt 0:02:15]} 28. Bxf6 {[%emt 0:03:33]} Kxf6 {[%emt 0:02:07]} 29. Qe5+ {[%emt 0:02:25]} Kg6 {[%emt 0:01:31]} 30. Qxe6+ {[%emt 0:03:43]} Rf6 {[%emt 0:01:54]} 31. Qg4 {[%emt 0:01:31]} Ref8 {[%emt 0:02:19]} 32. Rf1 {[%emt 0:02:10]} Qf7 {[%emt 0:01:58]} 33. Rd2 {[%emt 0:02:01]} Rf4 {[%emt 0:01:39]} 34. Qe2 {[%emt 0:01:54]} Bd6 {[%emt 0:01:47]} 35. Re1 {[%emt 0:02:10]} Rf6 {[%emt 0:01:53]} 36. Bd1 {[%emt 0:03:23]} Rh8 {[%emt 0:03:09]} 37. Rd3 {[%emt 0:01:12]} Bd7 {[%emt 0:02:40]} 38. Bc2 {[%emt 0:01:57]} Kg7 {[%emt 0:02:18]} 39. Bb3 {[%emt 0:02:56]} Rf5 {[%emt 0:02:14]} 40. Rf3 {[%emt 0:04:09]} g4 {[%emt 0:03:15]} 41. Rxf5 {[%emt 0:32:29]} Qxf5 {[%emt 0:30:51]} 42. g3 {[%emt 0:03:27]} hxg3 {[%emt 0:01:15]} 43. fxg3 {[%emt 0:00:18]} Qh5 {[%emt 0:00:00]} 44. Qg2 {[%emt 0:00:00]} Qg5 {[%emt 0:00:00]} 45. Bxd5 {[%emt 0:00:00]} Qf6 {[%emt 0:00:00]} 46. Qd2 {[%emt 0:00:00]} b6 {[%emt 0:00:00]} 47. Bb3 {[%emt 0:00:00]} Bc6 {[%emt 0:00:00]} 48. d5 {[%emt 0:00:00]} Bc5+ {[%emt 0:00:00]} 49. Kh1 {[%emt 0:00:00]} Bf2 {[%emt 0:00:00]} 50. Rf1 {[%emt 0:00:00]} Qf3# {[%emt 0:00:16]} 0-1

[Event "Germany Countries-chT Youth 2022"]
[Site "Wiesbaden"]
[Date "2022.10.01"]
[Round "1"]
[White "Abram, Kristina-Maria"]
[Black "Kutz, Ida Klara"]
[Result "0-1"]
[ECO "A48"]
[WhiteElo "1158"]
[BlackElo "1411"]
[Annotator "NA RC COMBH"]
[PlyCount "36"]
[EventDate "2022.09.28"]
[EventType "team-tourn"]
[EventRounds "7"]
[EventCountry "GER"]
[SourceTitle "playchess.com"]
[Source "ChessBase"]
[SourceQuality "1"]
[TimeControl "40/5400+30:1800+30"]

1. d4 {[%emt 0:00:03]} Nf6 {[%emt 0:00:11]} 2. Bf4 {[%emt 0:00:11]} g6 {[%emt 0:00:14]} 3. e3 {[%emt 0:00:17]} Bg7 {[%emt 0:00:40]} 4. Nf3 {[%emt 0:00:35]} O-O {[%emt 0:00:18]} 5. c3 {[%emt 0:00:15]} d6 {[%emt 0:01:30]} 6. Be2 {[%emt 0:00:46]} c5 {[%emt 0:01:17]} 7. h3 {[%emt 0:02:19]} cxd4 {[%emt 0:02:06]} 8. cxd4 {[%emt 0:00:15]} Qb6 {[%emt 0:01:10]} 9. Qc2 {[%emt 0:01:26]} Bf5 {[%emt 0:01:00]} 10. Qc1 {[%emt 0:03:44]} Na6 {[%emt 0:02:01]} 11. Nbd2 {[%emt 0:02:31]} Nb4 {[%emt 0:01:44]} 12. O-O {[%emt 0:02:37]} Rac8 {[%emt 0:01:11]} 13. Nc4 {[%emt 0:01:20]} Qc7 {[%emt 0:01:29]} 14. a3 {[%emt 0:04:04]} Nd3 {[%emt 0:00:45]} 15. Bxd3 {[%emt 0:08:32]} Bxd3 {[%emt 0:00:25]} 16. Ncd2 {[%emt 0:01:45]} Bxf1 {[%emt 0:01:36]} 17. Qxf1 {[%emt 0:00:09]} Qc2 {[%emt 0:02:27]} 18. b4 {[%emt 0:03:14]} Nd7 {[%emt 0:01:49]} 0-1

[Event "Germany Countries-chT Youth 2022"]
[Site "Wiesbaden"]
[Date "2022.10.01"]
[Round "1"]
[White "Altmeyer, Hannah"]
[Black "Richter, Johanna"]
[Result "0-1"]
[ECO "B20"]
[WhiteElo "728"]
[BlackElo "1355"]
[Annotator "NA RC COMBH"]
[PlyCount "46"]
[EventDate "2022.09.28"]
[EventType "team-tourn"]
[EventRounds "7"]
[EventCountry "GER"]
[SourceTitle "playchess.com"]
[Source "ChessBase"]
[SourceQuality "1"]
[TimeControl "40/5400+30:1800+30"]

1. e4 {[%emt 0:00:05]} c5 {[%emt 0:00:09]} 2. d3 {[%emt 0:00:32]} Nc6 {[%emt 0:00:09]} 3. Bd2 {[%emt 0:00:26]} Nf6 {[%emt 0:02:07]} 4. Nc3 {[%emt 0:01:25]} e6 {[%emt 0:02:21]} 5. Nf3 {[%emt 0:01:04]} Qc7 {[%emt 0:04:06]} 6. Be2 {[%emt 0:03:04]} Be7 {[%emt 0:00:18]} 7. Be3 {[%emt 0:06:19]} Ng4 {[%emt 0:06:14]} 8. Qd2 {[%emt 0:01:44]} Nxe3 {[%emt 0:02:25]} 9. Qxe3 {[%emt 0:01:34]} O-O {[%emt 0:01:28]} 10. Ng5 {[%emt 0:02:50]} Nd4 {[%emt 0:02:18]} 11. O-O-O {[%emt 0:00:43]} b5 {[%emt 0:01:53]} 12. Nf3 {[%emt 0:08:40]} Nxf3 {[%emt 0:04:36]} 13. Qxf3 {[%emt 0:00:23]} b4 {[%emt 0:01:00]} 14. Nb5 {[%emt 0:00:46]} Qc6 {[%emt 0:03:17]} 15. d4 {[%emt 0:00:32]} c4 {[%emt 0:00:49]} 16. Nxa7 {[%emt 0:03:27]} Rxa7 {[%emt 0:00:09]} 17. d5 {[%emt 0:00:31]} Qc5 {[%emt 0:02:00]} 18. Rhf1 {[%emt 0:03:13]} c3 {[%emt 0:01:44]} 19. a3 {[%emt 0:00:48]} cxb2+ {[%emt 0:00:13]} 20. Kxb2 {[%emt 0:00:29]} Bf6+ {[%emt 0:00:14]} 21. c3 {[%emt 0:01:13]} Bxc3+ {[%emt 0:00:10]} 22. Kc2 {[%emt 0:00:31]} Be1+ {[%emt 0:00:39]} 23. Kd3 {[%emt 0:00:57]} Qc3# {[%emt 0:00:10]} 0-1

[Event "Germany Countries-chT Youth 2022"]
[Site "Wiesbaden"]
[Date "2022.10.01"]
[Round "2"]
[White "Krastev, Alexander"]
[Black "Schmider, Niklas"]
[Result "1/2-1/2"]
[ECO "C28"]
[WhiteElo "2431"]
[BlackElo "2407"]
[Annotator "TA"]
[PlyCount "86"]
[EventDate "2022.09.28"]
[EventType "team-tourn"]
[EventRounds "7"]
[EventCountry "GER"]
[SourceTitle "playchess.com"]
[Source "ChessBase"]
[SourceQuality "1"]
[TimeControl "40/5400+30:1800+30"]

{[%evp 9,86,0,0,0,3,0,0,0,3,0,0,-43,-49,-44,-52,-48,-10,-11,-8,-32,-14,-31,-8,-8,0,-24,0,-22,0,-29,-6,-32,-12,-18,-7,-21,-22,-25,-12,-14,0,0,0,-10,-7,-8,-3,-5,-4,-5,-5,-9,0,-6,0,0,0,-15,0,0,0,0,0,0,598,618,1114,1113,1048,0,0,0,0,0,0,0,0,0,0]} 1. e4 {[%emt 0:00:02]} e5 {[%emt 0:00:11]} 2. Nc3 {[%emt 0:00:26]} Nc6 {[%emt 0:00:09]} 3. Bc4 {[%emt 0:00:15]} Nf6 {[%emt 0:00:13]} 4. d3 {[%emt 0:00:12]} Na5 {[%emt 0:00:34]} 5. Nge2 {[%emt 0:00:18]} Bc5 {[%emt 0:00:11]} 6. O-O {[%emt 0:00:12] C28: Vienna Game: 2...Nf6 3 Bc4 Nc6.} O-O {[%emt 0:00:51]} 7. a4 {[%emt 0:00:51]} Nxc4 {[%emt 0:00:49]} 8. dxc4 {[%emt 0:00:02]} h6 {[%emt 0:01:22] [#]} 9. Ng3 $146 {[%emt 0:09:15]} ({Predecessor:} 9. Qd3 d6 10. Be3 Nd7 11. a5 a6 12. Ng3 Rb8 13. b3 Bxe3 14. Qxe3 Nc5 15. Rad1 {1-0 (44) Topalov,V (2761)-Giri,A (2782) Paris 2016}) 9... d6 {[%emt 0:03:07]} 10. Be3 {[%emt 0:00:45]} Bxe3 $1 {[%emt 0:13:02]} ({Much weaker is} 10... Bg4 11. Qc1 $11) 11. fxe3 {[%emt 0:00:02]} Be6 {[%emt 0:01:05]} 12. Nd5 {[%emt 0:09:28] [#] Threatens to win with Nxf6+.} Nxd5 {[%emt 0:00:44]} 13. cxd5 {[%emt 0:00:07]} Bd7 {[%emt 0:00:15]} 14. a5 {[%emt 0:00:57]} g6 {[%emt 0:06:41]} 15. Qd3 {[%emt 0:00:34]} Qe7 {[%emt 0:05:41]} 16. Rf2 {[%emt 0:02:58]} Rad8 {[%emt 0:07:10]} 17. c4 {[%emt 0:09:32]} c5 {[%emt 0:05:44]} 18. Qc3 {[%emt 0:12:25]} Rc8 {[%emt 0:11:50]} 19. Ne2 {[%emt 0:09:02]} Rc7 {[%emt 0:10:38]} 20. Qb3 {[%emt 0:05:32]} Qg5 {[%emt 0:03:45]} 21. Raf1 {[%emt 0:01:10]} Bg4 {[%emt 0:00:56]} 22. Nc1 {[%emt 0:03:14]} (22. Qd3 {seems wilder.} Bxe2 23. Qxe2 Kg7 24. g3) 22... f5 {[%emt 0:05:57]} 23. exf5 {[%emt 0:16:40]} gxf5 {[%emt 0:00:43]} (23... Bxf5 $2 24. e4 $18) 24. Ne2 {[%emt 0:01:39]} Rcf7 {[%emt 0:03:30]} 25. Qd3 {[%emt 0:06:23]} Bh5 {[%emt 0:02:28]} 26. Nc3 {[%emt 0:00:51]} Bg6 {[%emt 0:03:01]} 27. Qd2 {[%emt 0:00:12]} Qd8 {[%emt 0:00:52]} 28. Ne2 {[%emt 0:00:47]} Qh4 {[%emt 0:02:42]} 29. b3 {[%emt 0:00:45]} Kh7 {[%emt 0:01:28]} 30. Nc3 {[%emt 0:02:35]} a6 {[%emt 0:00:22] Prevents Nb5.} 31. Ne2 {[%emt 0:00:27]} Rb8 {[%emt 0:01:20][%cal Bf8b8,Bb8b6,Bb6b3,Bb3b2][%mdl 32]} 32. Ng3 {[%emt 0:00:43][%cal Rg3f5]} Qg4 {[%emt 0:01:12]} 33. Rf3 {[%emt 0:01:51]} b5 {[%emt 0:02:02]} 34. axb6 {[%emt 0:00:15]} Rxb6 {[%emt 0:00:08]} 35. Qa5 {[%emt 0:01:29]} Rxb3 {[%emt 0:06:11]} 36. Qxa6 {[%emt 0:00:01]} Rf6 {[%emt 0:00:01][%mdl 8192]} (36... f4 $1 $11 {and Black stays safe.} 37. Qxd6 Rd7) 37. h3 $18 {[%emt 0:04:55]} Qh4 {[%emt 0:00:37]} 38. Nxf5 {[%emt 0:00:47]} Qg5 {[%emt 0:00:24]} 39. Nxd6 $2 {[%emt 0:01:47]} ({Less strong is} 39. Rg3 Qh5 $18) (39. h4 $18 Qh5 40. Ng3 Rxf3 41. Nxh5 Rxf1+ 42. Kxf1 Bxh5 43. Qxd6) 39... Rb2 $1 $36 {[%emt 0:01:28][%csl Gb2][%cal Rg5g2][%mdl 2048] [#] Black fights for an advantage. The position is equal.} 40. Qa7+ {[%emt 0:00:31]} Kg8 {[%emt 0:00:34][%csl Gb2][%cal Rg5g2]} 41. Qa8+ {[%emt 0:16:05]} Kh7 {[%emt 0:01:54][%csl Gb2][%cal Rg5g2]} 42. Qa7+ {[%emt 0:00:20]} Kg8 {[%emt 0:00:25][%csl Gb2][%cal Rg5g2]} 43. Qa8+ {[%emt 0:00:41]} Kh7 {[%emt 0:00:09] Weighted Error Value: White=0.15 (very precise) /Black=0.23 (precise)} 1/2-1/2

[Event "Germany Countries-chT Youth 2022"]
[Site "Wiesbaden"]
[Date "2022.10.01"]
[Round "2"]
[White "Kolb, Tobias"]
[Black "Hassemeier, Mika"]
[Result "1-0"]
[ECO "E46"]
[WhiteElo "2357"]
[BlackElo "2095"]
[Annotator "TA"]
[PlyCount "109"]
[EventDate "2022.09.28"]
[EventType "team-tourn"]
[EventRounds "7"]
[EventCountry "GER"]
[SourceTitle "playchess.com"]
[Source "ChessBase"]
[SourceQuality "1"]
[TimeControl "40/5400+30:1800+30"]

{[%evp 9,109,-5,0,6,4,0,0,0,0,-4,0,-48,-27,-49,-12,-21,17,19,13,-27,-42,-8,-22,-25,-35,-27,35,32,95,87,110,95,96,88,87,61,64,45,64,60,78,39,246,175,156,139,209,101,312,101,101,101,101,101,101,101,101,101,101,101,101,-38,130,130,130,130,130,130,130,130,130,130,214,244,316,130,130,130,130,130,130,130,130,130,130,-113,130,130,130,130,130,130,130,0,29984,29985,29972,29974,5716,1619,29990,29986]} 1. d4 Nf6 2. c4 e6 3. Nc3 Bb4 4. e3 {[%cal Be2e3,Be3e4,Be4e5][%mdl 32]} O-O 5. Nge2 c6 6. a3 {E46: Nimzo-Indian: Rubinstein: 4 e3 0-0 5 Ne2 without early Bd3.} Ba5 7. b4 Bc7 8. e4 {The position is equal.} d5 9. e5 Ne8 10. Ng3 (10. c5 $11) 10... f6 $15 11. f4 a5 {[#]} (11... c5 $5 12. bxc5 Ba5 $11) 12. b5 $146 ({Predecessor:} 12. Rb1 axb4 13. axb4 g5 14. Bd3 gxf4 15. Bxf4 fxe5 16. Bxh7+ Kxh7 17. Qh5+ Kg8 18. Qg6+ Ng7 19. Nh5 Qh4+ {0-1 (19) Mohammed,Z (2261)-Maghsoodloo,P (2636) Hamedan 2018}) 12... Nd7 {[%cal Rf6e5]} 13. cxd5 cxd5 {[%cal Rf6e5]} 14. Be3 fxe5 15. fxe5 Qh4 {[%cal Od7e5] aiming for ...Nxe5!} 16. Qh5 Qxh5 17. Nxh5 g6 (17... a4 $11) 18. Ng3 $14 Bb6 (18... a4 $14) 19. Na4 $16 Ba7 20. Kd2 Ng7 21. Bd3 Nb6 22. Nxb6 {White is much more active.} Bxb6 23. h4 {Hoping for h5.} Nf5 24. Nxf5 gxf5 25. g4 fxg4 $2 (25... f4 $1 $14 26. Bf2 a4) 26. Rhg1 h5 {...Bd7 is the strong threat.} 27. Bg6 Rf5 {[#]} (27... a4 $16 {keeps fighting.}) 28. a4 ({Less strong is} 28. Bxf5 exf5 29. Kd3 a4 $14) (28. Bxh5 $1 $18 {[%mdl 512]} Rxh5 29. Rxg4+ Kh8 30. Bg5) 28... Kg7 $2 {[#]} (28... Bd7 $16 {was worth a try.}) 29. Bxf5 $2 (29. Bxh5 $1 $18 {[%mdl 512] has better winning chances.} Rxh5 30. Rxg4+ Kh8 31. Bg5) 29... exf5 30. Kd3 Be6 31. Rac1 Kf7 32. Rc3 Ke7 33. Bc1 Kd7 34. Rf1 Rf8 35. Ba3 (35. Bf4 $16) 35... Rc8 $2 (35... Rg8 $15 {keeps the upper hand.}) 36. Rxc8 Kxc8 {[%mdl 4096] Endgame KRB-KB} 37. Ke3 Kd7 38. Bc5 Bd8 39. Rh1 Bf7 40. Kf4 Ke6 (40... Be6 $16 41. Ba3 Ke8) 41. Bd6 Be8 {[#]} 42. Kg3 (42. Rc1 $1 $18 {[%cal Rc1c8] is the precise move to win. And now Rc8 would win.} Kd7 43. Kxf5) 42... Bd7 43. Rc1 Bb6 44. Bc5 Bd8 45. Ba7 Ke7 46. Rc3 Be6 47. Kf4 $2 (47. Rc5 $16 {and life is bright.}) 47... Kd7 $2 (47... Kf7 $17 48. Kg3 f4+ 49. Kxf4 Bxh4) 48. Rc1 Ke7 49. Bb8 {Threatens to win with Bc7.} Kd7 {Against Bc7} 50. Bd6 Bb6 51. Kg5 (51. Rd1 $16) 51... Bxd4 $2 {[%mdl 8192]} (51... Bd8+ $11 52. Kf4 (52. Kxh5 $2 g3 $19) 52... Bb6) 52. Rc7+ Kd8 53. Kf6 Bd7 54. Rxb7 (54. Kf7 $142 Bxe5 55. Bxe5) 54... f4 55. b6 {Weighted Error Value: White=0.30/Black=0.60} 1-0

[Event "Germany Countries-chT Youth 2022"]
[Site "Wiesbaden"]
[Date "2022.10.01"]
[Round "2"]
[White "Stelmaszyk, Nico"]
[Black "Petrovsky, Vadim"]
[Result "0-1"]
[ECO "B22"]
[WhiteElo "2355"]
[BlackElo "1287"]
[Annotator "TA"]
[PlyCount "102"]
[EventDate "2022.09.28"]
[EventType "team-tourn"]
[EventRounds "7"]
[EventCountry "GER"]
[SourceTitle "playchess.com"]
[Source "ChessBase"]
[SourceQuality "1"]
[TimeControl "40/5400+30:1800+30"]

{[%evp 13,102,0,8,11,8,8,8,1,0,0,41,34,32,29,46,30,30,22,65,54,51,18,13,0,0,0,0,-28,0,-15,-24,-11,-12,-57,-10,-36,-6,-155,0,0,0,0,0,-8,0,-196,-194,-228,-246,-241,-236,-242,-240,-248,-235,-215,-241,-256,-244,-227,-262,-364,-359,-1119,-1125,-1081,-1051,-920,-843,-1268,-1215,-1359,-1320,-5265,-4698,-2711,-2705,-2011,-1943,-2706,-2323,-1869,-1812,-1383,-1803,-1803,-1711,-3473,-5138,-6744,-1379]} 1. e4 {[%emt 0:00:02]} c5 {[%emt 0:01:19]} 2. c3 {[%emt 0:00:02]} Nf6 {[%emt 0:00:43]} 3. e5 {[%emt 0:00:05]} Nd5 {[%emt 0:00:05]} 4. Bc4 {[%emt 0:00:03]} Nb6 {[%emt 0:00:36]} 5. Bb3 {[%emt 0:00:04]} Nc6 {[%emt 0:01:59]} 6. d4 {[%emt 0:00:06]} cxd4 {[%emt 0:00:11]} 7. cxd4 {[%emt 0:00:05]} d5 {[%emt 0:00:09]} 8. Bc2 {[%emt 0:00:04] is currently scoring better than 8.Nc3. B22: Sicilian: 2 c3.} Nb4 {[%emt 0:00:17][%cal Oc8g4]} 9. Nc3 {[%emt 0:00:07]} Nxc2+ {[%emt 0:00:08]} 10. Qxc2 {[%emt 0:00:04] The position is equal.} Bd7 {[%emt 0:00:33]} 11. Nge2 {[%emt 0:03:29] [#]} Qc8 $146 {[%emt 0:04:46]} ({Predecessor:} 11... e6 12. Qd3 Rc8 13. O-O Qh4 14. a4 a6 15. b3 Be7 16. Ba3 Bxa3 17. Rxa3 O-O {1-0 (41) Mamedyarov,S (2767)-Vitiugov,N (2726) Chess.com INT 2022}) 12. O-O {[%emt 0:08:14]} Bf5 {[%emt 0:01:26]} 13. Qd1 {[%emt 0:00:21]} e6 {[%emt 0:00:46]} 14. Ng3 {[%emt 0:00:35]} Bg6 {[%emt 0:00:17]} 15. h4 {[%emt 0:05:52] Black must now prevent h5.} h5 {[%emt 0:06:07]} 16. Bg5 {[%emt 0:01:36]} Qd7 {[%emt 0:01:15]} 17. a4 {[%emt 0:06:31]} Be7 {[%emt 0:02:15]} 18. f4 {[%emt 0:06:12]} Bxg5 {[%emt 0:02:01]} 19. fxg5 {[%emt 0:00:58]} Nc4 {[%emt 0:00:06]} 20. Qe2 {[%emt 0:02:33] Inhibits Ne3.} Rc8 {[%emt 0:03:08]} 21. Rfc1 {[%emt 0:08:18]} (21. b3 $5 {[%cal Rb3c4]} Na5 22. Nb5 $15) 21... a6 {[%emt 0:01:27]} 22. a5 {[%emt 0:03:19]} Qd8 $1 {[%emt 0:00:42]} 23. b4 {[%emt 0:01:20]} (23. Nce4 $5) 23... b5 {[%emt 0:05:36] Against Na4} (23... Qe7 $15 {was preferrable.}) 24. Na2 $11 {[%emt 0:14:25]} Qe7 {[%emt 0:01:34]} (24... Rc6 $5 {[%cal Rf7f6]} 25. Rc3 Qe7 $15) 25. Rf1 {[%emt 0:01:30]} (25. Rc3 $11 {keeps the balance.}) 25... Kd7 $2 {[%emt 0:02:47]} (25... Na3 $17 {aiming for ...Nc2.} 26. Rac1 Nc2) 26. Rf3 {[%emt 0:04:16]} Kc7 {[%emt 0:01:49]} 27. Raf1 {[%emt 0:01:29]} Kb8 $36 {[%emt 0:00:27][%cal Oc4a5][%mdl 2048] Black is pushing.} 28. Qe1 {[%emt 0:07:58]} Qa7 {[%emt 0:03:09]} 29. Qf2 {[%emt 0:05:59] [#] Black converts the advantage convincingly.} (29. Ne2 $11 {and White has nothing to worry.}) 29... Nxa5 $1 $19 {[%emt 0:00:46][%mdl 512]} 30. bxa5 {[%emt 0:14:04] And now Ne2 would win.} (30. Re1 Nb7) 30... Rc2 {[%emt 0:00:06]} 31. Ne2 {[%emt 0:01:58] Strongly threatening Nb4.} Rxa2 {[%emt 0:00:07]} 32. Rc1 {[%emt 0:00:27]} Rxa5 {[%emt 0:04:30]} 33. Nf4 {[%emt 0:01:49]} Be4 {[%emt 0:02:16]} 34. Rfc3 {[%emt 0:00:05][%cal Og5g6]} Ra4 {[%emt 0:02:07]} 35. Rc5 {[%emt 0:02:32]} Rc4 {[%emt 0:00:52]} 36. R1xc4 {[%emt 0:00:09]} dxc4 {[%emt 0:00:31]} ({Worse is} 36... bxc4 37. Qb2+ Qb7 38. Qa3 $17) 37. g6 {[%emt 0:00:20]} Rc8 {[%emt 0:01:25]} 38. Nxe6 $2 {[%emt 0:01:09]} (38. Kh2 Qe7 39. Rxc8+ Kxc8 40. gxf7 Qxf7 41. Qe3) 38... fxe6 {[%emt 0:00:49] Black is clearly winning.} 39. Rxc8+ {[%emt 0:01:04]} Kxc8 {[%emt 0:00:00]} 40. Qf8+ {[%emt 0:00:10]} Kb7 {[%emt 0:00:14]} 41. Qxg7+ {[%emt 0:02:09]} Kb6 {[%emt 0:03:02]} 42. Qf8 {[%emt 0:01:27] [#]} Qd7 $1 {[%emt 0:01:59]} 43. g7 {[%emt 0:00:45]} Qxd4+ {[%emt 0:00:55]} 44. Kh1 {[%emt 0:00:06]} Qa1+ {[%emt 0:07:42]} 45. Kh2 {[%emt 0:00:04]} Qxe5+ {[%emt 0:00:05]} 46. Kh1 {[%emt 0:00:09]} Bh7 {[%emt 0:00:08] ...Qe1+ is the strong threat.} 47. Qh8 {[%emt 0:00:28]} Qe1+ {[%emt 0:00:18]} 48. Kh2 {[%emt 0:00:06]} Qxh4+ {[%emt 0:00:03]} 49. Kg1 {[%emt 0:00:04]} Qd4+ {[%emt 0:00:31]} 50. Kh1 {[%emt 0:00:11]} Qd3 {[%emt 0:00:20] ( -> ...c3)} 51. g8=N {[%emt 0:02:27]} Bxg8 {[%emt 0:00:23] Weighted Error Value: White=0.75/Black=0.10 (very precise)} 0-1